Cogmind - Beta 12 @@@ ROGUE MODE // 2023.04.25 @ 12:46:19 Player: Mr Goldstein Result: Destroyed by S-10 Pest with Light Assault Rifle Performance ------------- Evolutions (0) 0 Regions Visited (2) 400 Robots Destroyed (6) 30 Value Destroyed (70) 70 Prototype IDs (1) 20 Alien Tech Used (0) 0 Bonus (0) 0 TOTAL SCORE: 520 Bonus ------- None Cogmind --------- Core Integrity 0/250 Matter 217/300 Energy 100/100 System Corruption 1% Temperature Cool (0) Movement Core (100) Ox1 Location -10/Mines Parts ------- > --- POWER (1) -------- (None) > --- PROPULSION (2) --- (None) > --- UTILITY (2) ------ (None) > --- WEAPON (2) ------- Rocket Launcher > --- INVENTORY (5) ---- Experimental Sensor Array Peak State ------------ > --- POWER ------------ (None) > --- PROPULSION ------- (None) > --- UTILITY ---------- Experimental Sensor Array > --- WEAPON ----------- (None) > --- INVENTORY -------- Rocket Launcher [Rating: 9] Favorites ----------- Power None Propulsion None Utility Experimental Sensor Array Device Experimental Sensor Array Weapon Rocket Launcher Launcher Rocket Launcher Build | -11 -10 -10 ------- Run | Jun Mat Min Slots Evolved . | . . . Power . | . . . Propulsion . | . . . Utility . | . . . Weapon . | . . . Parts Attached 4 | . . 4 Power . | . . . Engine . | . . . Core . | . . . Reactor . | . . . Propulsion . | . . . Treads . | . . . Leg . | . . . Wheel . | . . . Hover . | . . . Flight . | . . . Utility 1 | . . 1 Device 1 | . . 1 Storage . | . . . Processor . | . . . Hackware . | . . . Protection . | . . . Artifact . | . . . Weapon 3 | . . 3 Energy Gun . | . . . Energy Cannon . | . . . Ballistic Gun . | . . . Ballistic Cannon . | . . . Launcher 3 | . . 3 Special Weapon . | . . . Impact Weapon . | . . . Slashing Weapon . | . . . Piercing Weapon . | . . . Special Melee Weapon . | . . . Unidentified Prototypes 1 | . . 1 Parts Lost . | . . . Power . | . . . Propulsion . | . . . Utility . | . . . Weapon . | . . . Highest Loss Streak . | . . . To Critical Strikes . | . . . Average Slot Usage (%) 1 | . . 1 Launcher 1 | . . 1 Naked Turns 235 | . 23 212 Heaviest Build . | . . . Greatest Support 3 | 3 3 3 Greatest Overweight (x) . | . . . Average Overweight (x) . | . . . Largest Inventory Capacity 5 | 5 5 5 Average Capacity 5 | 5 5 5 Most Carried 2 | . . 2 Average Carried 1 | . . 1 Final Capacity 5 | 5 5 5 Final Carried 1 | . . 1 Class Distribution -------------------- 100% | Mutant Dominant Class ---------------- Mutant | -10/Materials Mutant | -10/Mines Resources | -11 -10 -10 ----------- Run | Jun Mat Min Matter Collected 204 | 200 . 4 Remotely . | . . . Salvage Created 24 | . . 24 Parts 5 | . . 5 Haulers Intercepted . | . . . Recyclers Shooed . | . . . Parts Field Recycled . | . . . Retrieved Matter . | . . . Parts Self-Destructed . | . . . Prevented . | . . . Kills | -11 -10 -10 ------- Run | Jun Mat Min Combat Hostiles Destroyed 6 | . . 6 AOE 6 | . . 6 Classes Destroyed 1 | . . 1 Swarmer 6 | . . 6 Best Kill Streak 3 | . . 3 Combat Bots Only 3 | . . 3 Max Kills in Single Turn 2 | . . 2 Gunslinging . | . . . Exploded 2 | . . 2 Melee . | . . . Uniques/NPCs Destroyed . | . . . Combat | -11 -10 -10 -------- Run | Jun Mat Min Damage Taken 290 | . . 290 Core 255 | . . 255 Absorbed by Shields . | . . . Core Remaining (%) 100 | 100 . . Volleys Fired 9 | . . 9 Largest 1 | . . 1 Hottest 33 | . . 33 Shots Fired 9 | . . 9 Gun . | . . . Cannon . | . . . Launcher 9 | . . 9 Special . | . . . Kinetic . | . . . Thermal . | . . . Explosive 9 | . . 9 Electromagnetic . | . . . Robot Hit Streak 1 | . . 1 Robot Miss Streak 2 | . . 2 Penetration Max . | . . . Secondary Targets . | . . . Shots Hit Robots 1 | . . 1 Core Hits 6 | . . 6 Critical Kills . | . . . Critical Parts Destroyed . | . . . Critical Strikes . | . . . Melee Attacks . | . . . Impact . | . . . Slashing . | . . . Piercing . | . . . Sneak Attacks . | . . . Combat Hostiles . | . . . Follow-up Attacks . | . . . Damage Inflicted 422 | . . 422 Guns . | . . . Cannons . | . . . Explosions 368 | . . 368 Melee . | . . . Ramming 54 | . . 54 Kinetic . | . . . Thermal . | . . . Explosive 368 | . . 368 Electromagnetic . | . . . Impact . | . . . Slashing . | . . . Piercing . | . . . Highest Corruption 1 | . . 1 Average Corruption 1 | . . 1 Corruption Purged . | . . . Corruption Blocked . | . . . Effects 1 | . . 1 Data Loss (major) 1 | . . 1 Overload Shots . | . . . Overflow Damage 42 | . . 42 Projectiles . | . . . Explosions 42 | . . 42 Melee . | . . . Knockbacks . | . . . Impact . | . . . Kinetic . | . . . Secondary . | . . . Self-Inflicted Damage 44 | . . 44 Shots 2 | . . 2 Rammed 13 | . . 13 Targets Rammed 13 | . . 13 Kicked . | . . . Crushed . | . . . Highest Temperature 7 | . . 7 Average Temperature 7 | . . 7 Received Heat Transfer 96 | . . 96 Siege Activations . | . . . Robots Corrupted . | . . . Combat Hostiles . | . . . Parts Fried . | . . . Impact Corruptions . | . . . Robots Melted . | . . . Combat Hostiles . | . . . Parts Melted . | . . . Heat Transferred . | . . . Parts Sabotaged . | . . . Parts Stolen . | . . . Parts Stripped . | . . . Power Chain Reactions . | . . . Missiles Intercepted . | . . . Alert | -11 -10 -10 ------- Run | Jun Mat Min Peak Influence 255 | . 8 255 Initial 3 | . . 3 Average 140 | . 5 161 Maximum Alert Level 1 | . . 1 Low Security (%) 56 | 100 100 50 Level 1 43 | . . 49 Level 2 . | . . . Level 3 . | . . . Level 4 . | . . . Level 5 . | . . . High Security . | . . . Max Security . | . . . Squads Dispatched 1 | . . 1 Investigation 1 | . . 1 Extermination . | . . . Reinforcement . | . . . Assault . | . . . Garrison . | . . . Intercept . | . . . Searches Triggered . | . . . Construction Impeded . | . . . Haulers Reinforced . | . . . Active Scanning Responses . | . . . Cargo Convoy Interrupts . | . . . Stealth | -11 -10 -10 --------- Run | Jun Mat Min Distress Signals . | . . . Communications Jammed . | . . . Distress Signals . | . . . Times Spotted 8 | . . 8 Peak Tracking Total 3 | . . 3 Tactical Retreats 1 | . . 1 Traps | -11 -10 -10 ------- Run | Jun Mat Min Traps Triggered . | . . . Indirectly . | . . . Trap Hack Attempts . | . . . Triggered . | . . . Disarmed . | . . . Reprogrammed . | . . . Reused . | . . . Traps Extracted . | . . . Installed . | . . . Triggered . | . . . Machines | -11 -10 -10 ---------- Run | Jun Mat Min Machines Disabled 1 | . . 1 Max in Single Turn 1 | . . 1 Machines Repaired . | . . . Machines Sabotaged . | . . . Overloaded Fab Kills . | . . . Hacking | -11 -10 -10 --------- Run | Jun Mat Min Machines Accessed 2 | . 1 1 Terminals 2 | . 1 1 Fabricators . | . . . Repair Stations . | . . . Recycling Units . | . . . Scanalyzers . | . . . Garrison Access . | . . . Total Hacks 4 | . 1 3 Successful 1 | . 1 . Failed 3 | . . 3 Catastrophic 1 | . . 1 Database Lockouts . | . . . Manual 4 | . 1 3 Terminals 4 | . 1 3 Fabricators . | . . . Repair Stations . | . . . Recycling Units . | . . . Scanalyzers . | . . . Garrison Access . | . . . Terminal Hacks 1 | . 1 . Branch Access Points 1 | . 1 . Fabricator Hacks . | . . . Repair Station Hacks . | . . . Recycling Unit Hacks . | . . . Scanalyzer . | . . . Garrison Access Hacks . | . . . Unauthorized Hacks . | . . . Terminals . | . . . Fabricators . | . . . Repair Stations . | . . . Recycling Units . | . . . Scanalyzers . | . . . Garrison Access . | . . . Data Cores Recovered . | . . . Used . | . . . Hacking Detections 1 | . . 1 Full Trace Events 1 | . . 1 Feedback Events . | . . . Feedback Blocked . | . . . Robot Schematics Acquired . | . . . Robots Built . | . . . Authchips . | . . . Time . | . . . Total Robot Build Rating . | . . . Part Schematics Acquired . | . . . Parts Built . | . . . Authchips . | . . . Time . | . . . Total Part Build Rating . | . . . Parts Repaired . | . . . Time . | . . . Parts Recycled . | . . . Recycled Matter . | . . . Retrieved Matter . | . . . Retrieved Components . | . . . Parts Scanalyzed . | . . . Part Schematics Acquired . | . . . Parts Damaged . | . . . Bothacking | -11 -10 -10 ------------ Run | Jun Mat Min Used RIF Installer . | . . . Robots Hacked . | . . . Non-combat . | . . . Combat . | . . . Robot Hacks Applied . | . . . Relay Couplers Released . | . . . Fabnet Peak Effective % . | . . . Robots Rewired . | . . . Allies Hacked . | . . . Hacks Repelled . | . . . Allies | -11 -10 -10 -------- Run | Jun Mat Min Total Allies . | . . . Largest Group . | . . . Highest-Rated Group . | . . . Highest-Rated Ally . | . . . Total Orders . | . . . Ally Attacks . | . . . Total Damage . | . . . Kills . | . . . Allies Corrupted . | . . . Allies Melted . | . . . Intel | -11 -10 -10 ------- Run | Jun Mat Min Robot Analysis Total . | . . . Derelict Logs Recovered . | . . . Drone Launches . | . . . Drone Recoveries . | . . . Exploration | -11 -10 -10 ------------- Run | Jun Mat Min Turns Passed 278 | 14 23 241 Spaces Moved 460 | 28 45 387 Core 460 | 28 45 387 Treads . | . . . Legs . | . . . Wheels . | . . . Hover . | . . . Flight . | . . . Fastest Speed 50 | 50 50 50 Average Speed 50 | 50 50 50 Slowest Speed 50 | 50 50 50 Overloaded Moves . | . . . Propulsion Burnouts . | . . . Robots Hopped . | . . . Cave-ins Triggered . | . . . Exploration Rate (%) 31 | 3 12 79 Regions Visited 2 Branch Regions 1 Pre-discovered Areas . | . . . Known Exits Taken 1 | . 1 . Unknown Exits Taken 1 | 1 . . Scrap Searched . | . . . Spaces Dug 36 | . . 36 Terrain Destroyed 84 | . . 84 Melee . | . . . Projectile . | . . . AOE 84 | . . 84 Terrain Rammed . | . . . Walls Destroyed . | . . . Machines Disabled . | . . . Actions | -11 -10 -10 --------- Run | Jun Mat Min Total 498 | 27 44 427 Wait 10 | . . 10 Move 458 | 27 44 387 Hop . | . . . Pick Up 1 | . . 1 Fast Attach 1 | . . 1 Attach 3 | . . 3 Detach 3 | . . 3 Swap . | . . . Drop . | . . . Fire 9 | . . 9 Melee . | . . . Ram 13 | . . 13 Kick . | . . . Crush . | . . . Escape Stasis . | . . . Rewire . | . . . Trap . | . . . Miscellaneous . | . . . Route ------- -11/Junkyard -10/Materials (discovered 2 exits: *Min x2) -10/Mines History --------- Turn | Location | Event 5 | -11/Junkyard | Discovered new exit (range 15) 15 | -11/Junkyard | Entered Materials 23 | -10/Materials | Identified exit to Mines 38 | -10/Materials | Entered Mines 45 | -10/Mines | Received a Rocket Launcher from a helpful Derelict 92 | -10/Mines | Found a damaged Exp. Sensor Array with a note attached 93 | -10/Mines | Found Prototype Device 93 | -10/Mines | Identified Exp. Sensor Array 188 | -10/Mines | Core integrity fell below 50% 194 | -10/Mines | Core integrity fell below 20% 279 | -10/Mines | Destroyed by S-10 Pest with Light Assault Rifle Last Messages --------------- again, ha." 00093_ Acquired Prototype Device. 00093_ Identified Exp. Sensor Array. 00123_ S-10 Pest destroyed. 00129_ Acquired 1 matter. 00130_ Acquired 3 matter. 00132_ Connecting with Terminal... 00132_ ALERT: Suspicious activity at Terminal M001. Dispatching Investigation squad. 00133_ The unstable cave ceiling collapses. 00140_ Slammed into T-07 Excavator. 00148_ T-07 Excavator is excavating. 00163_ Slammed into G-34 Mercenary. 00186_ Slammed into G-47 Trooper. 00191_ Destabilizing: System corrupted (+1). 00192_ Slammed into G-47 Trooper. 00199_ T-07 Excavator is excavating. 00201_ Slammed into G-47 Trooper. 00210_ System corrupted: Substantial component data lost. 00234_ K-01 Serf collects debris. Map ----- +----------------------------------------------------+ | ?# #???######?????????????? | | ?# #??## ##????????????? | | ?# #??# ###??????????? | | ?## ##??# ######?????? | | ??## ##??# ####### | | ???# ##?## #### | | ???# #### ###??# | | ???## ## ##????######### | | ????## ##?????????????# | | ?????## ##??????????????# | | ??????# ##??????????????## | | ??????# ##?????????????### | | ??????# ##??????????????# | | ??????# #???????????????# | | ??????# ##??????????????+ | | ??????# ##########?????+ | | ??????## #?????# | | ???????# #???## | | ??????## #### #?### | | ??????# ##???? $ | | ??????# ##??????? | | ??????# #????????? ##### | | ??????# #??????????? #???# | | ??????# #?????????? ????## | | ?????## ##????????? ### | | ???###@ #????????? $ | | ??## #????????? | | ?? #?????????????### | | ?# #???????????????## | | ?# #????????????????## | | ?# #?????????????????## | | ?# ##################### | | ?## # #### | | ??#### ??# | | ?????## ??# ## ### ######## | | ???????s ??????????# #??????## | | ??????? ??????????# #???????## | | ??????? ??????????# #????????# | | ???????s ?????????# #????????# | | ??????? ?????????# ###??????# | | ??????? ??????????# #??????# | | ???????? ??????????### #??????# | | ???????? ????????????# #??####? | | ???????? ????????????# #?## ## | | ???????? ????????????# #?# # | | ?????????????????????# #?# # | | ?????????????????????# ### | | ?????????????????????# | | ?????????????????????#### | | ????????????????????????# | +----------------------------------------------------+ Best States ------------- Heat Dissipation 25 Energy Generation 5 Energy Capacity 100 Matter Stores 300 Matter Capacity 300 Sight Range 16 Terrain Scan Density 10 Evasion (%) 50 Item Schematics ----------------- None Robot Schematics ------------------ None Fabricated ------------ Nothing Alien Tech Used ----------------- None Achievements -------------- None Challenges ------------ None Game ------ Seed TrackerReactionCanceller Manual? 0 Play Time 00:04:24 Cumulative 139.4 hours Start 2023.04.25 @ 12:39:04 End 2023.04.25 @ 12:46:19 Sessions 1 Manual Loads 0 Difficulty Rogue Special Mode None Game No. 406 Rogue 406 Adventurer 0 Explorer 0 Win Type - Total 5 Types 5/0/0/0/0/0/0/0/0 Lore% 62 Gallery% 68 Achievement% 58 Wizard Run 0 Options --------- ASCII 0 Keyboard 0 Movement Numpad Keybinds 0 Fullscreen 1 Font 16/SmallcapsGlow Map View 75x55 Tactical HUD 1 Map Filters NONE Filters NONE Steam 1 RUN: b9ee2d24-ec6d-495b-8536-0f72ba40d39a